bitfinex/quotes_SOLUSD_20240809
["timestamp","ask_amount","ask_price","bid_price","bid_amount"]
[1723213721985,1.3563673,154.66,154.55,35.86]
[1723213722311,35.98549,154.65,154.55,35.86]
[1723213722503,1.1053873,154.64,154.55,35.86]
[1723213722901,35.86,154.67,154.57,35.86]
[1723213723100,36.9653873,154.67,154.57,35.86]
[1723213723300,1.1053873,154.67,154.57,35.86]
[1723213723508,35.86,154.69,154.59,35.86]
[1723213723711,1.1053873,154.69,154.61,35.86]
[1723213723897,1.1053873,154.69,154.58,35.86]
[1723213723898,36.9653873,154.69,154.58,35.86]
[1723213724089,6.465,154.68,154.58,35.86]
[1723213724289,35.86,154.67,154.58,35.86]
[1723213724485,35.86,154.69,154.58,35.86]
[1723213724716,42.3246,154.69,154.58,35.86]
[1723213724915,7.8212673,154.68,154.58,35.86]
[1723213725095,1.3563673,154.68,154.58,35.86]
[1723213725298,35.86,154.69,154.58,35.86]
[1723213725621,36.9653873,154.73,154.62,35.86]
[1723213725913,35.86,154.75,154.64,35.86]
[1723213726414,35.86,154.75,154.65,1.2929231]
[1723213726600,35.86,154.75,154.64,35.86]
[1723213726805,1.1951177,154.78,154.62,35.86]
[1723213726806,35.86,154.73,154.62,35.86]
[1723213727118,35.86,154.75,154.64,35.86]
[1723213727412,42.322,154.75,154.64,35.86]
[1723213727795,35.86,154.75,154.64,35.86]
[1723213728593,35.86,154.77,154.66,35.86]
[1723213729125,35.86,154.77,154.67,1.2927895]
[1723213729421,35.86,154.77,154.66,35.86]
[1723213729803,0.0897304,154.78,154.7,35.86]
[1723213730520,0.0897304,154.78,154.72,35.86]
[1723213730822,0.0897304,154.78,154.73,1.29224815]
[1723213731003,0.0897304,154.78,154.72,35.86]
[1723213731200,0.0897304,154.78,154.74,35.86]
[1723213731614,0.0897304,154.78,154.72,35.86]
[1723213731827,0.0897304,154.78,154.7,35.86]
[1723213732118,42.3213,154.77,154.66,35.86]
[1723213732309,35.86,154.75,154.63,35.86]
[1723213732610,35.86,154.75,154.65,35.86]
[1723213732814,35.86,154.77,154.67,35.86]
[1723213733021,0.0897304,154.78,154.69,35.86]
[1723213733199,0.2152204,154.78,154.67,35.86]
[1723213733720,35.86,154.77,154.67,35.86]
[1723213734094,36.9653873,154.77,154.67,35.86]
[1723213734614,1.2308773,154.76,154.67,35.86]
[1723213734815,1.2308773,154.76,154.59,8.8830371]
[1723213734816,0.0897304,154.78,154.69,35.86]
[1723213735193,35.86,154.77,154.67,35.86]
[1723213735397,0.12549,154.76,154.67,35.86]
[1723213735611,35.86,154.77,154.67,35.86]
[1723213735904,0.0897304,154.78,154.69,35.86]
[1723213736104,0.0897304,154.78,154.71,35.86]
[1723213737010,0.0897304,154.78,154.73,35.86]
[1723213737227,0.0897304,154.78,154.74,1.29223451]
[1723213737397,0.0897304,154.78,154.73,35.86]
[1723213737599,0.0897304,154.78,154.71,35.86]
[1723213738013,0.0897304,154.78,154.69,35.86]
[1723213739604,0.2152204,154.78,154.69,35.86]
[1723213739800,0.0897304,154.78,154.69,35.86]
[1723213740229,0.0897304,154.78,154.64,35.86]
[1723213740230,6.5508304,154.78,154.67,35.86]
[1723213740418,0.0897304,154.78,154.67,35.86]
[1723213740613,0.0897304,154.78,154.71,35.86]
[1723213740807,0.0897304,154.78,154.63,2.58002755]
[1723213740808,6.5505304,154.78,154.63,2.58002755]
[1723213741011,36.9653873,154.77,154.66,35.86]
[1723213741331,0.0897304,154.78,154.68,35.86]
[1723213741536,0.0897304,154.78,154.64,35.86]
[1723213741537,0.0897304,154.78,154.7,35.86]
[1723213742028,0.0897304,154.78,154.68,35.86]
[1723213742821,42.3212,154.77,154.66,35.86]
[1723213743026,0.0897304,154.78,154.68,35.86]
[1723213744907,6.6761204,154.78,154.68,35.86]
[1723213745125,6.5506304,154.78,154.68,35.86]
[1723213745336,58.522,154.75,154.62,16.4034]
[1723213745514,6.4636,154.72,154.62,35.86]
[1723213745832,1.2308773,154.74,154.6,35.86]
[1723213745833,36.9653873,154.71,154.6,35.86]
[1723213746029,35.86,154.69,154.58,35.86]
[1723213746244,35.86,154.67,154.56,35.86]
[1723213746417,6.4662,154.65,154.56,35.86]
[1723213746604,35.86,154.63,154.52,35.86]
[1723213746810,1.1053873,154.62,154.52,35.86]
[1723213747118,58.522,154.65,154.56,35.86]
[1723213747313,16.28259,154.74,154.6,35.86]
[1723213747314,22.662,154.7,154.6,35.86]
[1723213747826,43.8067573,154.69,154.58,35.86]
[1723213748125,35.86,154.69,154.58,35.86]
[1723213748303,29.1262,154.7,154.6,35.86]
[1723213748507,0.37647,154.69,154.6,35.86]
[1723213748906,22.662,154.7,154.6,35.86]
[1723213749332,0.12549,154.69,154.6,35.86]
[1723213749506,35.86,154.68,154.56,35.86]
[1723213749708,0.12549,154.67,154.56,35.86]
[1723213750111,0.12549,154.69,154.58,35.86]
[1723213750312,35.86,154.66,154.49,1.29337635]
[1723213750517,1.1053873,154.65,154.56,35.86]
[1723213750735,1.1053873,154.65,154.54,35.86]
[1723213750926,7.5715873,154.65,154.54,35.86]
[1723213751112,1.1053873,154.65,154.54,35.86]
[1723213751311,35.86,154.62,154.48,6.71433588]
[1723213751509,0.12549,154.63,154.53,35.86]
[1723213751731,6.4682,154.61,154.45,15.579]
[1723213751935,0.12549,154.57,154.46,35.86]
[1723213752138,35.86,154.54,154.4,11.76122422]
[1723213752432,42.45469,154.58,154.47,35.86]
[1723213752742,0.12549,154.58,154.49,35.86]
[1723213752908,37.2163673,154.58,154.47,35.86]
[1723213753104,35.86,154.54,154.44,35.86]
[1723213753311,42.331,154.54,154.44,35.86]
[1723213753533,1.2308773,154.53,154.44,35.86]
[1723213753833,0.12549,154.53,154.44,35.86]
[1723213754034,35.86,154.56,154.46,35.86]
[1723213754218,0.12549,154.57,154.41,1.29439555]
[1723213754409,0.12549,154.57,154.42,35.86]
[1723213754410,0.12549,154.53,154.42,35.86]
[1723213754611,6.4724,154.51,154.4,40.86]
[1723213754806,0.12549,154.5,154.4,40.86]
[1723213755013,6.59849,154.49,154.4,40.86]
[1723213755227,6.4737,154.47,154.4,5.0]
[1723213755433,0.25098,154.48,154.4,5.0]
[1723213756016,35.86,154.47,154.4,5.0]
[1723213756347,42.3356,154.43,154.4,5.0]
[1723213756643,16.432,154.47,154.4,5.0]
[1723213757239,6.6466,154.48,154.4,42.15520694]
[1723213757444,52.5228,154.53,154.42,35.86]
[1723213757648,53.6281873,154.53,154.42,35.86]
[1723213757815,6.4718,154.52,154.42,35.86]
[1723213758237,6.4718,154.52,154.4,5.0]
[1723213758416,42.332,154.51,154.41,35.86]
[1723213758627,52.5228,154.53,154.43,35.86]
[1723213758817,16.6628,154.53,154.45,35.86]
[1723213759139,1.1053873,154.52,154.43,35.86]
[1723213759330,35.86,154.51,154.41,35.86]
[1723213759541,6.4729,154.49,154.4,5.0]
[1723213759716,7.5787873,154.48,154.4,5.0]
[1723213759918,7.5790873,154.47,154.4,5.0]
[1723213760118,0.12549,154.46,154.4,5.0]
[1723213760539,44.33,154.52,154.4,5.0]
[1723213760740,45.37647,154.51,154.4,5.0]
[1723213760946,0.12549,154.47,154.4,5.0]
[1723213761364,1.4818573,154.48,154.4,5.0]
[1723213761640,0.12549,154.46,154.4,5.0]
[1723213761842,0.50196,154.46,154.4,5.0]
[1723213762060,6.76059296,154.5,154.41,1.29533135]
[1723213762216,16.6628,154.53,154.41,1.29533135]
[1723213762414,23.134,154.53,154.4,5.0]
[1723213762617,16.6628,154.53,154.4,6.29482362]
[1723213762938,6.4729,154.49,154.4,5.0]
[1723213763146,1.1053873,154.48,154.4,5.0]
[1723213763326,44.33,154.5,154.4,5.0]
[1723213763644,0.12549,154.49,154.4,5.0]
[1723213763826,0.12549,154.5,154.4,5.0]
[1723213764023,16.6628,154.53,154.41,1.29496341]
[1723213764242,6.4717,154.52,154.4,5.0]
[1723213764425,6.472,154.51,154.4,5.0]
[1723213764631,1.1053873,154.5,154.4,5.0]
[1723213765129,6.472,154.52,154.4,5.0]
[1723213765341,16.6628,154.53,154.4,6.29492243]
[1723213765646,16.6628,154.53,154.4,5.0]
[1723213765943,1.3563673,154.52,154.4,5.0]
[1723213766145,0.25098,154.52,154.4,6.29513096]
[1723213766328,0.12549,154.51,154.4,5.0]
[1723213766528,6.4728,154.5,154.4,5.0]
[1723213766733,6.4738,154.47,154.4,5.0]
[1723213766935,6.4742,154.46,154.4,5.0]
[1723213767136,1.1053873,154.46,154.4,5.0]
[1723213767325,0.25098,154.49,154.4,5.0]
[1723213767648,0.25098,154.5,154.4,5.0]
[1723213767850,0.12549,154.5,154.4,5.0]
[1723213768053,16.6628,154.53,154.41,1.29496175]
[1723213768229,16.6628,154.53,154.41,45.62496175]
[1723213768541,16.6628,154.53,154.4,5.0]
[1723213768741,1.1053873,154.52,154.4,5.0]
[1723213769144,6.4728,154.5,154.4,5.0]
[1723213769322,1.1053873,154.49,154.4,5.0]
[1723213769528,6.4737,154.47,154.4,5.0]
[1723213769723,1.1053873,154.46,154.4,5.0]
[1723213769941,6.4733,154.48,154.4,5.0]
[1723213770139,6.59929,154.47,154.4,5.0]
[1723213770431,6.59929,154.47,154.4,5.3148122]
[1723213770432,0.25098,154.46,154.4,5.3148122]
[1723213770629,0.12549,154.45,154.4,5.3148122]
[1723213771138,0.12549,154.44,154.4,5.3148122]
[1723213771341,0.37647,154.44,154.4,5.3148122]
[1723213771529,0.12549,154.45,154.4,5.3148122]
[1723213771730,0.12549,154.46,154.4,5.3148122]
[1723213772038,60.9928,154.53,154.41,1.29524845]
[1723213772233,6.7559283,154.56,154.44,44.33]
[1723213772441,6.115,154.62,154.47,44.33]
[1723213772665,6.115,154.62,154.48,1.29399397]
[1723213772828,6.115,154.62,154.42,15.5035]
[1723213772829,6.4697,154.57,154.43,65.62399397]
[1723213773030,44.33,154.58,154.44,45.0]
[1723213773259,44.33,154.58,154.43,21.41948397]
[1723213773260,44.33,154.58,154.43,20.0]
[1723213773550,6.4708,154.54,154.42,15.5035]
[1723213773755,1.1053873,154.57,154.42,15.5035]
[1723213773936,60.5028,154.58,154.42,15.5035]
[1723213774140,1.1053873,154.57,154.42,15.5035]
[1723213774440,44.33,154.55,154.41,6.1036]
[1723213774630,44.33,154.55,154.4,5.3148122]
[1723213774631,0.12549,154.51,154.4,5.3148122]
[1723213774837,6.4729,154.49,154.4,5.3148122]
[1723213775045,6.474,154.47,154.4,5.3148122]
[1723213775253,1.2308773,154.46,154.4,5.3148122]
[1723213775557,0.37647,154.45,154.4,5.3148122]
[1723213775751,0.12549,154.44,154.4,5.3148122]
[1723213775959,0.12549,154.43,154.4,5.3148122]
[1723213776488,6.476,154.42,154.4,5.3148122]
[1723213776634,0.37647,154.41,154.4,5.3148122]
[1723213776834,6.476,154.42,154.4,5.3148122]
[1723213777060,6.4752,154.44,154.4,5.3148122]
[1723213777352,0.25098,154.45,154.4,5.3148122]
[1723213777353,6.4761,154.42,154.4,5.3148122]
[1723213777557,0.25098,154.43,154.4,5.3148122]
[1723213777740,0.12549,154.44,154.4,5.3148122]
[1723213777940,6.4754,154.43,154.4,5.3148122]
[1723213778255,0.12549,154.44,154.4,5.3148122]
[1723213779057,6.4759,154.42,154.4,5.3148122]
[1723213779634,6.72718,154.41,154.4,5.3148122]
[1723213779930,0.12549,154.45,154.4,5.3148122]
[1723213780135,6.4762,154.41,154.4,5.3148122]
[1723213780334,6.97816,154.41,154.4,5.3148122]
[1723213780657,44.33,154.46,154.4,5.3148122]
[1723213780864,6.4762,154.41,154.4,5.3148122]
[1723213781163,6.72718,154.41,154.4,5.3148122]
[1723213781336,6.97816,154.41,154.4,5.3148122]
[1723213781534,6.4758,154.43,154.4,5.3148122]
[1723213781739,6.60129,154.42,154.4,5.3148122]
[1723213781955,6.4758,154.42,154.4,5.3148122]
[1723213782137,6.60169,154.41,154.4,5.3148122]
[1723213782338,0.12549,154.41,154.4,5.3148122]
[1723213782548,6.60169,154.41,154.4,5.3148122]
[1723213782753,6.72718,154.41,154.4,5.3148122]
[1723213783157,6.4754,154.43,154.4,5.3148122]
[1723213783345,6.4758,154.42,154.4,5.3148122]
[1723213783545,6.4762,154.41,154.4,5.3148122]
[1723213784046,6.4762,154.41,154.32,0.8329919]
[1723213784047,6.4765,154.41,154.32,0.8329919]
[1723213784245,6.4767,154.4,154.32,0.8329919]
[1723213784432,1.1053873,154.45,154.32,0.8329919]
[1723213784637,1.2308773,154.45,154.32,0.8329919]
[1723213784840,0.12549,154.45,154.32,0.8329919]
[1723213785254,45.4353873,154.47,154.32,0.8329919]
[1723213785748,52.18223572,154.47,154.32,0.8329919]
[1723213785969,6.4759,154.42,154.32,0.8329919]
[1723213786549,52.18223572,154.47,154.32,0.8329919]
[1723213786550,6.4754,154.43,154.32,0.8329919]
[1723213786749,6.60139,154.42,154.32,0.8329919]
[1723213786945,6.4765,154.41,154.32,0.8329919]
[1723213787365,51.07684842,154.47,154.32,0.8329919]
[1723213787366,0.12549,154.46,154.32,0.8329919]
[1723213787560,0.50196,154.46,154.33,1.29550047]
[1723213788043,6.4759,154.42,154.32,0.8329919]
[1723213788242,6.60089,154.44,154.32,0.8329919]
[1723213788443,0.25098,154.43,154.32,0.8329919]
[1723213789168,0.12549,154.43,154.33,1.29558577]
[1723213789347,6.74684842,154.47,154.34,44.33]
[1723213789552,6.74684842,154.47,154.33,1.29558577]
[1723213789553,6.4733,154.49,154.36,6.0158]
[1723213789772,22.6841,154.52,154.36,6.0158]
[1723213789773,44.33,154.47,154.36,6.0158]
[1723213789963,6.475,154.44,154.36,6.0158]
[1723213790452,45.4353873,154.47,154.36,6.0158]
[1723213790453,44.33,154.47,154.36,6.0158]
[1723213790661,0.25098,154.46,154.36,6.0158]
[1723213790842,6.476,154.42,154.36,6.0158]
[1723213791270,6.4763,154.41,154.36,6.0158]
[1723213791480,1.2308773,154.44,154.36,6.0158]
[1723213791659,6.4758,154.42,154.36,6.0158]
[1723213791972,0.12549,154.42,154.32,0.8329919]
[1723213792149,6.4767,154.4,154.32,0.8329919]
[1723213792563,6.4762,154.41,154.32,0.8329919]
[1723213792758,6.60169,154.41,154.32,0.8329919]
[1723213792961,1.2308773,154.43,154.32,0.8329919]
[1723213792962,0.12549,154.43,154.32,0.8329919]
[1723213793270,0.25098,154.44,154.32,0.8329919]
[1723213793576,6.72598,154.44,154.32,0.8329919]
[1723213793870,6.72598,154.44,154.33,44.33]
[1723213794067,0.37647,154.44,154.32,0.8329919]
[1723213794257,6.60089,154.43,154.32,0.8329919]
[1723213794574,6.60129,154.42,154.32,0.8329919]
[1723213794873,6.72608,154.44,154.32,45.1629919]
[1723213795345,11.2558142,154.48,154.32,0.8329919]
[1723213795548,6.4753,154.44,154.32,45.1629919]
[1723213795948,7.85352941,154.49,154.33,1.29547191]
[1723213796172,1.1053873,154.48,154.35,44.33]
[1723213796370,1.1053873,154.48,154.32,46.45827021]
[1723213796576,1.1053873,154.48,154.33,20.0]
[1723213796753,1.1053873,154.48,154.32,45.1629919]
[1723213796754,44.33,154.47,154.32,45.1629919]
[1723213796957,6.4755,154.43,154.32,45.1629919]
[1723213797150,6.4758,154.42,154.32,45.1629919]
[1723213797471,6.4754,154.43,154.32,45.1629919]
[1723213797776,0.12549,154.44,154.33,1.29558891]
[1723213798180,0.12549,154.44,154.32,45.1629919]
[1723213798181,0.12549,154.41,154.32,0.8329919]
[1723213798383,6.4774,154.39,154.32,0.8329919]
[1723213798667,0.12549,154.38,154.32,0.8329919]
[1723213799074,1.2308773,154.38,154.32,0.8329919]
[1723213799276,6.60339,154.38,154.32,0.8329919]
[1723213799572,0.12549,154.38,154.32,0.8329919]
[1723213799774,6.4766,154.41,154.32,0.8329919]
[1723213799979,2.58227902,154.44,154.32,0.8329919]
[1723213800288,6.5261,154.46,154.32,0.8329919]
[1723213800289,6.4744,154.46,154.32,0.8329919]
[1723213800575,44.33,154.5,154.34,22.4576]
[1723213800762,16.1792,154.52,154.36,44.33]
[1723213800763,6.4733,154.48,154.36,44.33]
[1723213800964,44.33,154.42,154.34,22.4576]
[1723213801155,1.1053873,154.41,154.32,0.8329919]
[1723213801563,1.1053873,154.44,154.32,0.8329919]
[1723213802056,6.4748,154.45,154.32,0.8329919]
[1723213802378,6.473,154.49,154.37,6.505]
[1723213802579,1.1053873,154.48,154.37,6.505]
[1723213803074,6.475,154.44,154.32,7.3379919]
[1723213803281,6.4751,154.44,154.32,7.3379919]
[1723213803449,7.5808873,154.43,154.32,7.3379919]
[1723213803654,1.1053873,154.43,154.32,7.3379919]
[1723213803859,0.12549,154.42,154.32,7.3379919]
[1723213804059,7.5796873,154.46,154.32,7.3379919]
[1723213804257,44.33,154.44,154.32,0.8329919]
[1723213804481,6.4768,154.4,154.32,0.8329919]
[1723213804691,6.4761,154.42,154.32,0.8329919]
[1723213804856,7.8326673,154.41,154.32,0.8329919]
[1723213805056,6.4767,154.4,154.32,0.8329919]
[1723213805356,1.2308773,154.39,154.32,0.8329919]
[1723213805570,0.37647,154.38,154.32,0.8329919]
[1723213805777,0.25098,154.38,154.32,0.8329919]
[1723213806174,1.1053873,154.4,154.32,0.8329919]
[1723213806465,1.1053873,154.39,154.32,0.8329919]
[1723213806677,6.4787,154.36,154.32,0.8329919]
[1723213806872,7.5840873,154.36,154.32,0.8329919]
[1723213807075,6.4778,154.38,154.32,0.8329919]
[1723213807259,6.5637,154.47,154.32,0.8329919]
[1723213807574,6.4738,154.47,154.34,16.6487]
[1723213807775,6.4738,154.47,154.37,36.27]
[1723213808080,36.27,154.49,154.39,36.27]
[1723213808460,36.27,154.51,154.39,36.27]
[1723213808661,36.27,154.51,154.41,36.27]
[1723213808969,37.3753873,154.53,154.41,36.27]
[1723213809283,6.4734,154.48,154.39,36.27]
[1723213809484,1.1053873,154.49,154.39,36.27]
[1723213809663,36.27,154.52,154.4,1.29515734]
[1723213809978,50.6195,154.62,154.44,44.31]
[1723213810182,6.4683,154.6,154.45,1.29434973]
[1723213810382,6.4678,154.62,154.48,22.7671]
[1723213810686,1.1053873,154.62,154.48,22.7671]
[1723213810869,45.4153873,154.62,154.48,22.7671]
[1723213811268,16.86958532,154.64,154.5,44.31]
[1723213811463,6.4662,154.65,154.51,1.29397095]
[1723213811665,6.4662,154.65,154.52,1.29383019]
[1723213811981,6.4687,154.59,154.48,22.7671]
[1723213812162,44.31,154.63,154.48,22.7671]
[1723213812163,1.1053873,154.58,154.48,22.7671]
[1723213812362,6.4675,154.62,154.48,24.06113707]
[1723213812573,6.4675,154.62,154.48,22.7671]
[1723213812981,6.4679,154.61,154.48,22.7671]
[1723213813286,44.31,154.66,154.5,44.31]
[1723213813470,6.4669,154.64,154.51,1.29393368]
[1723213813675,45.4153873,154.66,154.5,44.31]
[1723213813857,6.4669,154.64,154.5,44.31]
[1723213814058,6.72982652,154.68,154.5,44.31]
[1723213814059,6.72982652,154.68,154.53,44.31]
[1723213814388,44.31,154.72,154.56,44.31]
[1723213814573,22.4193,154.75,154.59,59.8475]
[1723213814574,6.4642,154.7,154.59,59.8475]
[1723213814887,6.4641,154.7,154.59,59.8475]
[1723213815087,1.1053873,154.69,154.59,15.5375]
[1723213815279,73.4509076,154.75,154.59,15.5375]
[1723213815280,6.4659,154.66,154.59,15.5375]
[1723213815472,6.4672,154.63,154.58,6.132]
[1723213815668,1.1053873,154.62,154.58,6.132]
[1723213815871,60.4717,154.69,154.54,15.5375]
[1723213815872,44.31,154.66,154.54,21.757]
[1723213816182,44.31,154.72,154.54,21.757]
[1723213816183,6.4681,154.61,154.54,21.757]
[1723213816582,44.43549,154.66,154.54,21.757]
[1723213816788,20.12549,154.65,154.54,21.757]
[1723213817083,0.12549,154.65,154.54,21.757]
[1723213817283,1.2308773,154.65,154.54,21.757]
[1723213817482,0.12549,154.65,154.54,21.757]
[1723213817685,20.0,154.68,154.55,1.29379409]
[1723213817863,6.4658,154.66,154.54,21.757]
[1723213818283,20.0,154.68,154.56,44.31]
[1723213818587,45.4153873,154.72,154.57,1.29339808]
[1723213818768,6.4647,154.69,154.57,1.29339808]
[1723213819095,6.464,154.71,154.56,45.60332562]
[1723213819392,1.1053873,154.74,154.6,6.2095]
[1723213819579,51.0316076,154.75,154.6,6.2095]
[1723213819580,45.4153873,154.75,154.6,6.2095]
[1723213819889,6.72470918,154.74,154.6,6.2095]
[1723213820092,44.31,154.72,154.6,6.2095]
[1723213820385,1.1053873,154.71,154.6,6.2095]
[1723213820589,60.4716,154.69,154.55,6.1265]
[1723213820784,6.4679,154.61,154.55,6.1265]
[1723213821087,6.4674,154.62,154.55,6.1265]
[1723213821292,6.59249,154.63,154.55,6.1265]
[1723213821583,6.4683,154.6,154.55,6.1265]
[1723213821798,0.25098,154.59,154.51,6.1265]
[1723213821965,20.12549,154.59,154.51,6.1265]
[1723213822164,6.4695,154.57,154.51,6.1265]
[1723213822482,26.4687,154.59,154.51,6.1265]
[1723213822800,1.3563673,154.58,154.51,6.1265]
[1723213823084,6.4711,154.54,154.48,16.1666]
[1723213823290,44.43549,154.52,154.39,6.1265]
[1723213823478,0.12549,154.5,154.39,6.1265]
[1723213823784,6.4737,154.47,154.39,6.1265]
[1723213824089,1.2308773,154.46,154.39,6.1265]
[1723213824391,6.4754,154.43,154.39,6.1265]
[1723213824562,0.12549,154.44,154.33,6.3461]
[1723213824757,6.72638,154.44,154.33,6.3461]
[1723213824980,20.0,154.48,154.33,7.64160191]
[1723213825163,44.31,154.52,154.34,44.31]
[1723213825370,6.4716,154.53,154.4,44.31]
[1723213825589,6.4737,154.48,154.37,44.31]
[1723213825789,1.1053873,154.53,154.38,1.29497153]
[1723213826088,44.31,154.55,154.4,44.31]
[1723213826294,6.47,154.56,154.42,6.4513]
[1723213826586,44.31,154.56,154.43,15.9606]
[1723213826970,6.4733,154.48,154.43,15.9606]
[1723213827169,6.4726,154.5,154.43,15.9606]
[1723213827393,44.31,154.53,154.43,15.9606]
[1723213827568,6.4716,154.52,154.43,15.9606]
[1723213827762,0.12549,154.51,154.43,15.9606]
[1723213828093,44.31,154.5,154.37,6.3731]
[1723213828387,0.25098,154.52,154.38,1.29524235]
[1723213828692,6.4712,154.53,154.4,44.31]
[1723213828864,44.31,154.56,154.4,44.31]
[1723213828865,1.1053873,154.52,154.4,44.31]
[1723213829065,44.31,154.56,154.37,6.3731]
[1723213829066,44.31,154.53,154.37,6.3731]
[1723213829278,1.1053873,154.52,154.37,6.3731]
[1723213829661,44.31,154.5,154.37,6.3731]
[1723213829889,0.12549,154.48,154.37,6.3731]
[1723213830196,37.4142773,154.48,154.37,6.3731]
[1723213830369,6.4749,154.45,154.37,6.3731]
[1723213830696,1.2308773,154.44,154.37,6.3731]
[1723213830897,0.12549,154.43,154.37,6.3731]
[1723213831390,1.1053873,154.43,154.37,6.3731]
[1723213831599,6.4762,154.41,154.37,6.3731]
[1723213831771,1.2308773,154.4,154.32,0.8329919]
[1723213831968,0.12549,154.39,154.32,0.8329919]
[1723213832169,6.60339,154.38,154.32,0.8329919]
[1723213832363,7.8343673,154.37,154.32,0.8329919]
[1723213832568,7.7088773,154.37,154.32,0.8329919]
[1723213832801,1.2308773,154.37,154.32,0.8329919]
[1723213833300,6.4793,154.34,154.32,0.8329919]
[1723213833595,6.85517,154.36,154.32,0.8329919]
[1723213833791,7.7096773,154.35,154.32,0.8329919]
[1723213833969,0.12549,154.34,154.32,0.8329919]
[1723213834307,1.1053873,154.35,154.32,0.8329919]
[1723213834672,0.12549,154.36,154.32,0.8329919]
[1723213834869,26.477,154.4,154.32,0.8329919]
[1723213835078,6.4777,154.38,154.32,0.8329919]
[1723213835394,0.25098,154.37,154.32,0.8329919]
[1723213835574,6.4767,154.4,154.32,0.8329919]
[1723213835785,1.1053873,154.43,154.32,0.8329919]
[1723213835992,60.4944,154.47,154.32,0.8329919]
[1723213835993,6.4766,154.4,154.32,0.8329919]
[1723213836308,1.1053873,154.39,154.32,0.8329919]
[1723213836672,6.4775,154.38,154.32,0.8329919]
[1723213836874,7.5833873,154.37,154.32,0.8329919]
[1723213837172,0.12549,154.37,154.32,0.8329919]
[1723213837373,44.31,154.41,154.32,0.8329919]
[1723213837578,1.1053873,154.42,154.32,0.8329919]
[1723213838277,6.4775,154.38,154.32,0.8329919]
[1723213838474,6.478,154.37,154.32,0.8329919]
[1723213838672,44.31,154.41,154.32,0.8329919]
[1723213838872,6.4776,154.38,154.32,0.8329919]
[1723213839085,0.25098,154.37,154.32,0.8329919]
[1723213839399,0.12549,154.35,154.32,0.8329919]
[1723213839572,0.12549,154.36,154.32,0.8329919]
[1723213839998,6.60419,154.36,154.32,0.8329919]
[1723213840219,6.4796,154.33,154.32,0.8329919]
[1723213840378,1.2308773,154.33,154.32,0.8329919]
[1723213840581,0.12549,154.33,154.32,0.8329919]
[1723213840881,0.12549,154.34,154.32,0.8329919]
[1723213841198,0.12549,154.33,154.32,0.8329919]
[1723213841398,0.25098,154.33,154.32,0.8329919]
[1723213841705,6.73058,154.33,154.32,0.8329919]
[1723213841886,6.98156,154.33,154.32,0.8329919]
[1723213842203,71.98156,154.33,154.32,0.8329919]
[1723213842573,0.50196,154.33,154.32,0.8329919]
[1723213842786,6.85607,154.33,154.32,0.8329919]
[1723213842998,0.12549,154.31,154.23,16.4291]
[1723213843299,0.12549,154.3,154.23,16.4291]
[1723213843487,6.85767,154.3,154.23,16.4291]
[1723213843794,6.60679,154.29,154.23,16.4291]
[1723213844172,6.4826,154.26,154.16,16.8232919]
[1723213844493,1.4818573,154.25,154.16,16.8232919]
[1723213844692,1.3563673,154.25,154.2,6.485]
[1723213845199,6.4838,154.23,154.18,6.4855]
[1723213845379,0.25098,154.25,154.16,16.8232919]
[1723213845574,1.2308773,154.25,154.21,6.4846]
[1723213846401,0.12549,154.25,154.16,16.8232919]
[1723213846605,46.88527135,154.31,154.16,61.1332919]
[1723213846606,6.60669,154.3,154.16,61.1332919]
[1723213846817,0.12549,154.29,154.17,1.29678572]